[Event "Late-Titled-Tuesday-Blitz-May-14-2024"]
[Site "Chess.com"]
[Date "2024.05.14"]
[Round "5"]
[White "ImportedItalianMaple"]
[Black "HanSchut"]
[Result "1-0"]
[WhiteElo "2571"]
[BlackElo "2375"]
[TimeControl "180+1"]
[EndTime "14:56:21 PDT"]
[Termination "ImportedItalianMaple won by resignation"]

1. e4 {[%clk 0:02:57.3]} 1... c5 {[%clk 0:02:59.3]} 2. Nf3 {[%clk 0:02:57.7]}
2... d6 {[%clk 0:02:58.9]} 3. Bc4 {[%clk 0:02:57.2]} 3... e6 {[%clk 0:02:55.8]}
4. d3 {[%clk 0:02:49.5]} 4... Nf6 {[%clk 0:02:54.3]} 5. c3 {[%clk 0:02:48.8]}
5... d5 {[%clk 0:02:54.7]} 6. Bb5+ {[%clk 0:02:45.9]} 6... Bd7 {[%clk
0:02:50.7]} 7. Bxd7+ {[%clk 0:02:39.3]} 7... Qxd7 {[%clk 0:02:37.1]} 8. Nbd2
{[%clk 0:02:29.3]} 8... Nc6 {[%clk 0:02:31.1]} 9. O-O {[%clk 0:02:28.4]} 9...
dxe4 {[%clk 0:02:20.9]} 10. Nxe4 {[%clk 0:02:28.1]} 10... Nxe4 {[%clk
0:02:20.7]} 11. dxe4 {[%clk 0:02:28.6]} 11... Qxd1 {[%clk 0:02:21.2]} 12. Rxd1
{[%clk 0:02:29.3]} 12... Rd8 {[%clk 0:02:19.2]} 13. Rxd8+ {[%clk 0:02:24.8]}
13... Nxd8 {[%clk 0:02:19]} 14. Ne5 {[%clk 0:02:13.3]} 14... Be7 {[%clk
0:02:11.7]} 15. Be3 {[%clk 0:02:11.8]} 15... b6 {[%clk 0:02:09]} 16. Rd1 {[%clk
0:02:09.9]} 16... f6 {[%clk 0:02:03.5]} 17. Nc4 {[%clk 0:02:08.6]} 17... Nb7
{[%clk 0:01:50.2]} 18. a4 {[%clk 0:02:04.8]} 18... Nd8 {[%clk 0:01:38.9]} 19. a5
{[%clk 0:01:59]} 19... b5 {[%clk 0:01:34.2]} 20. Nd6+ {[%clk 0:01:59.5]} 20...
Bxd6 {[%clk 0:01:20.5]} 21. Rxd6 {[%clk 0:02:00.4]} 21... Nb7 {[%clk 0:00:44]}
22. Ra6 {[%clk 0:01:52.7]} 22... O-O {[%clk 0:00:39.4]} 23. Rxa7 {[%clk
0:01:47.7]} 23... Rd8 {[%clk 0:00:34.4]} 24. Kf1 {[%clk 0:01:46.4]} 24... Nd6
{[%clk 0:00:33.4]} 25. a6 {[%clk 0:01:35.9]} 25... Nxe4 {[%clk 0:00:28.8]} 26.
Rb7 {[%clk 0:01:31]} 26... Nd6 {[%clk 0:00:20.3]} 27. Rb6 {[%clk 0:01:21.4]}
27... Nc4 {[%clk 0:00:19.6]} 28. Rxb5 {[%clk 0:01:21.6]} 28... Nxe3+ {[%clk
0:00:20]} 29. fxe3 {[%clk 0:01:22.3]} 29... Ra8 {[%clk 0:00:20.1]} 30. Ra5
{[%clk 0:01:18.4]} 30... Kf7 {[%clk 0:00:19.8]} 31. a7 {[%clk 0:01:18.5]} 31...
c4 {[%clk 0:00:19.5]} 32. Ke2 {[%clk 0:01:14.9]} 32... Ke7 {[%clk 0:00:19.3]}
33. e4 {[%clk 0:01:02.7]} 33... e5 {[%clk 0:00:17.6]} 34. Ra4 {[%clk 0:00:23.6]}
34... Kd7 {[%clk 0:00:16.1]} 35. Rxc4 {[%clk 0:00:20.6]} 35... Rxa7 {[%clk
0:00:16.2]} 36. Rb4 {[%clk 0:00:20.8]} 36... Ra1 {[%clk 0:00:14.6]} 37. c4
{[%clk 0:00:20.6]} 37... Rg1 {[%clk 0:00:13.9]} 38. Kf2 {[%clk 0:00:20.1]} 38...
Rc1 {[%clk 0:00:14.4]} 39. b3 {[%clk 0:00:19.5]} 39... Rc3 {[%clk 0:00:13.3]}
40. Rb7+ {[%clk 0:00:19.5]} 40... Kc6 {[%clk 0:00:11.3]} 41. Rxg7 {[%clk
0:00:19.9]} 41... Rxb3 {[%clk 0:00:11.5]} 42. Rxh7 {[%clk 0:00:20.2]} 42... Kc5
{[%clk 0:00:11.3]} 43. Rf7 {[%clk 0:00:20.2]} 43... Kd4 {[%clk 0:00:11.7]} 44.
Rxf6 {[%clk 0:00:20.6]} 44... Kxe4 {[%clk 0:00:12.2]} 45. c5 {[%clk 0:00:20.5]}
45... Rc3 {[%clk 0:00:11.1]} 46. c6 {[%clk 0:00:21]} 46... Rc2+ {[%clk 0:00:12]}
47. Kg3 {[%clk 0:00:21.3]} 47... Kd4 {[%clk 0:00:11.8]} 48. h4 {[%clk
0:00:20.3]} 48... e4 {[%clk 0:00:12]} 49. h5 {[%clk 0:00:20.8]} 49... e3 {[%clk
0:00:12.4]} 50. Re6 {[%clk 0:00:21]} 50... e2 {[%clk 0:00:11.8]} 51. h6 {[%clk
0:00:21]} 51... Rc3+ {[%clk 0:00:10.9]} 52. Kf4 {[%clk 0:00:20.4]} 52... Kd3
{[%clk 0:00:08.2]} 53. h7 {[%clk 0:00:19.2]} 53... Rc4+ {[%clk 0:00:08.7]} 54.
Kf3 {[%clk 0:00:19.4]} 54... Rc3 {[%clk 0:00:08.2]} 55. h8=Q {[%clk 0:00:17.9]}
55... Kd2+ {[%clk 0:00:04.9]} 56. Qxc3+ {[%clk 0:00:18.6]} 56... Kxc3 {[%clk
0:00:05.2]} 57. Rxe2 {[%clk 0:00:19.2]} 1-0

[Event "Late-Titled-Tuesday-Blitz-May-14-2024"]
[Site "Chess.com"]
[Date "2024.05.14"]
[Round "5"]
[White "kingofthenil"]
[Black "dropstoneDP"]
[Result "1-0"]
[WhiteElo "2871"]
[BlackElo "2949"]
[TimeControl "180+1"]
[EndTime "14:56:23 PDT"]
[Termination "kingofthenil won by resignation"]

1. d4 {[%clk 0:03:00.9]} 1... d5 {[%clk 0:02:59.5]} 2. c4 {[%clk 0:03:00.8]}
2... dxc4 {[%clk 0:03:00.4]} 3. e3 {[%clk 0:02:59.4]} 3... Nf6 {[%clk
0:03:00.5]} 4. Bxc4 {[%clk 0:02:59.4]} 4... e6 {[%clk 0:03:01.4]} 5. Nf3 {[%clk
0:02:59.5]} 5... c5 {[%clk 0:03:01.8]} 6. O-O {[%clk 0:02:58.9]} 6... a6 {[%clk
0:03:02.2]} 7. dxc5 {[%clk 0:02:58.8]} 7... Bxc5 {[%clk 0:03:00.9]} 8. Qxd8+
{[%clk 0:02:46.4]} 8... Kxd8 {[%clk 0:03:01.8]} 9. Nfd2 {[%clk 0:02:45.8]} 9...
Ke7 {[%clk 0:02:58]} 10. Nb3 {[%clk 0:02:45.1]} 10... Bd6 {[%clk 0:02:57.6]} 11.
Be2 {[%clk 0:02:25.5]} 11... Bd7 {[%clk 0:02:56.5]} 12. N1d2 {[%clk 0:02:22.5]}
12... Bb5 {[%clk 0:02:53.4]} 13. Nc4 {[%clk 0:02:22.2]} 13... Nc6 {[%clk
0:02:50]} 14. Bd2 {[%clk 0:02:13]} 14... Ne4 {[%clk 0:02:48.9]} 15. Nxd6 {[%clk
0:02:05.5]} 15... Nxd6 {[%clk 0:02:47.3]} 16. Bxb5 {[%clk 0:02:02.7]} 16... Nxb5
{[%clk 0:02:45.5]} 17. Rfc1 {[%clk 0:02:00]} 17... Rhd8 {[%clk 0:02:40.8]} 18.
Kf1 {[%clk 0:01:57.1]} 18... Rac8 {[%clk 0:02:35.4]} 19. Ke2 {[%clk 0:01:56.2]}
19... Nd6 {[%clk 0:02:30]} 20. Nc5 {[%clk 0:01:51.6]} 20... a5 {[%clk
0:02:27.2]} 21. Na4 {[%clk 0:01:47.9]} 21... Ra8 {[%clk 0:02:04.9]} 22. Rc2
{[%clk 0:01:43.9]} 22... Ra6 {[%clk 0:02:03.6]} 23. Rac1 {[%clk 0:01:41.4]}
23... Ke8 {[%clk 0:01:57]} 24. a3 {[%clk 0:01:38.7]} 24... f6 {[%clk 0:01:51.7]}
25. Nc5 {[%clk 0:01:34.6]} 25... Rb6 {[%clk 0:01:48.6]} 26. Nxe6 {[%clk
0:01:34.9]} 26... Rd7 {[%clk 0:01:41]} 27. Nc5 {[%clk 0:01:27.9]} 27... Re7
{[%clk 0:01:41.1]} 28. Bc3 {[%clk 0:01:06.8]} 28... Nb5 {[%clk 0:01:39.1]} 29.
Rd2 {[%clk 0:01:03.3]} 29... Nxc3+ {[%clk 0:01:36]} 30. Rxc3 {[%clk 0:01:02.9]}
30... Rb5 {[%clk 0:01:35.2]} 31. f3 {[%clk 0:01:00.2]} 31... f5 {[%clk
0:01:27.8]} 32. Kf2 {[%clk 0:00:31.6]} 32... g6 {[%clk 0:01:24.5]} 33. h4 {[%clk
0:00:19.6]} 33... Kf7 {[%clk 0:01:22.8]} 34. Kg3 {[%clk 0:00:19.2]} 34... h6
{[%clk 0:01:17.9]} 35. Nxb7 {[%clk 0:00:17]} 35... Rexb7 {[%clk 0:01:03.9]} 36.
Rxc6 {[%clk 0:00:17.5]} 36... Rxb2 {[%clk 0:01:04.5]} 37. Rdd6 {[%clk
0:00:17.6]} 37... g5 {[%clk 0:01:00.3]} 38. hxg5 {[%clk 0:00:12.3]} 38... hxg5
{[%clk 0:01:01.2]} 39. Rf6+ {[%clk 0:00:12.9]} 39... Ke7 {[%clk 0:00:59.2]} 40.
Rxf5 {[%clk 0:00:13.8]} 40... Ra2 {[%clk 0:00:56.8]} 41. Rxg5 {[%clk 0:00:09.4]}
41... Rbb2 {[%clk 0:00:57]} 42. Rg7+ {[%clk 0:00:08.5]} 42... Kf8 {[%clk
0:00:56.6]} 43. Ra7 {[%clk 0:00:07.4]} 43... Rxg2+ {[%clk 0:00:54.2]} 44. Kf4
{[%clk 0:00:07.3]} 44... Rgc2 {[%clk 0:00:54.1]} 45. Rxc2 {[%clk 0:00:06.6]}
45... Rxc2 {[%clk 0:00:55]} 46. Rxa5 {[%clk 0:00:07.1]} 46... Ke7 {[%clk
0:00:54.8]} 47. e4 {[%clk 0:00:06.9]} 47... Kf6 {[%clk 0:00:55.7]} 48. Ra6+
{[%clk 0:00:06.9]} 48... Ke7 {[%clk 0:00:56]} 49. Kf5 {[%clk 0:00:07.4]} 49...
Rh2 {[%clk 0:00:54.5]} 50. f4 {[%clk 0:00:07.1]} 50... Rh5+ {[%clk 0:00:55.1]}
51. Kg4 {[%clk 0:00:07.7]} 51... Rh1 {[%clk 0:00:54.1]} 52. f5 {[%clk
0:00:08.1]} 52... Kf7 {[%clk 0:00:53.6]} 53. Kf4 {[%clk 0:00:08.4]} 53... Rb1
{[%clk 0:00:53.2]} 54. Ke5 {[%clk 0:00:08.8]} 54... Rb5+ {[%clk 0:00:53.2]} 55.
Kf4 {[%clk 0:00:09.4]} 55... Rb1 {[%clk 0:00:52.3]} 56. a4 {[%clk 0:00:09.6]}
56... Ra1 {[%clk 0:00:51.2]} 57. Ke5 {[%clk 0:00:09.5]} 57... Rc1 {[%clk
0:00:50.3]} 58. Ra7+ {[%clk 0:00:09.6]} 58... Ke8 {[%clk 0:00:50.2]} 59. a5
{[%clk 0:00:09.8]} 59... Rc5+ {[%clk 0:00:49.7]} 60. Kd6 {[%clk 0:00:10.3]}
60... Rc1 {[%clk 0:00:49.4]} 61. e5 {[%clk 0:00:10.5]} 61... Kf8 {[%clk
0:00:45.8]} 62. f6 {[%clk 0:00:10.4]} 62... Rb1 {[%clk 0:00:44.5]} 63. Ke6
{[%clk 0:00:10.4]} 63... Kg8 {[%clk 0:00:43.4]} 64. Ra8+ {[%clk 0:00:10.8]}
64... Kh7 {[%clk 0:00:43.8]} 65. f7 {[%clk 0:00:11]} 1-0

[Event "Late-Titled-Tuesday-Blitz-May-14-2024"]
[Site "Chess.com"]
[Date "2024.05.14"]
[Round "5"]
[White "penguingm1"]
[Black "Rud_Makarian"]
[Result "1-0"]
[WhiteElo "2867"]
[BlackElo "2946"]
[TimeControl "180+1"]
[EndTime "14:56:25 PDT"]
[Termination "penguingm1 won by resignation"]

1. d4 {[%clk 0:03:00.9]} 1... Nf6 {[%clk 0:02:59.9]} 2. Bf4 {[%clk 0:02:59.5]}
2... c5 {[%clk 0:02:59.8]} 3. e3 {[%clk 0:02:59.4]} 3... Qb6 {[%clk 0:02:59.4]}
4. Na3 {[%clk 0:02:59.4]} 4... d6 {[%clk 0:02:58.4]} 5. Nc4 {[%clk 0:02:59.2]}
5... Qc7 {[%clk 0:02:58.4]} 6. Nf3 {[%clk 0:02:58.2]} 6... g6 {[%clk 0:02:56.3]}
7. c3 {[%clk 0:02:02.1]} 7... Bg7 {[%clk 0:02:51]} 8. h3 {[%clk 0:01:16.7]} 8...
Nbd7 {[%clk 0:02:47.3]} 9. Be2 {[%clk 0:00:51.4]} 9... O-O {[%clk 0:02:36.4]}
10. a4 {[%clk 0:00:49.9]} 10... b6 {[%clk 0:02:35.1]} 11. O-O {[%clk 0:00:49.4]}
11... Bb7 {[%clk 0:02:35.1]} 12. Rc1 {[%clk 0:00:47.8]} 12... Rac8 {[%clk
0:02:33.2]} 13. Bh2 {[%clk 0:00:44.9]} 13... Qb8 {[%clk 0:02:30.2]} 14. Qb3
{[%clk 0:00:44.6]} 14... Qa8 {[%clk 0:02:29.1]} 15. Rfd1 {[%clk 0:00:42.5]}
15... Bc6 {[%clk 0:02:24.5]} 16. Qa3 {[%clk 0:00:36.1]} 16... Rfe8 {[%clk
0:02:19.3]} 17. b4 {[%clk 0:00:25.4]} 17... cxb4 {[%clk 0:02:19.1]} 18. cxb4
{[%clk 0:00:26.3]} 18... Bd5 {[%clk 0:02:17.8]} 19. b5 {[%clk 0:00:22.3]} 19...
Ne4 {[%clk 0:02:06.6]} 20. Qb4 {[%clk 0:00:21.5]} 20... Bf8 {[%clk 0:01:51.2]}
21. Bf1 {[%clk 0:00:21.4]} 21... Bxc4 {[%clk 0:01:42.5]} 22. Bxc4 {[%clk
0:00:19.8]} 22... e6 {[%clk 0:01:34.2]} 23. Qb3 {[%clk 0:00:18.3]} 23... d5
{[%clk 0:01:33.7]} 24. Bd3 {[%clk 0:00:18.6]} 24... Rxc1 {[%clk 0:01:32.4]} 25.
Rxc1 {[%clk 0:00:18.8]} 25... Rc8 {[%clk 0:01:33.1]} 26. Rc2 {[%clk 0:00:19.4]}
26... Qb7 {[%clk 0:01:30.4]} 27. Bf4 {[%clk 0:00:19.3]} 27... Kg7 {[%clk
0:01:28.2]} 28. Qb2 {[%clk 0:00:19.3]} 28... Nef6 {[%clk 0:01:10.2]} 29. Qc1
{[%clk 0:00:17.3]} 29... Rxc2 {[%clk 0:01:09.7]} 30. Qxc2 {[%clk 0:00:18.2]}
30... Qa8 {[%clk 0:00:53.5]} 31. Qc6 {[%clk 0:00:17.4]} 31... Qd8 {[%clk
0:00:51.8]} 32. Qb7 {[%clk 0:00:16.1]} 32... h6 {[%clk 0:00:50.3]} 33. Qxa7
{[%clk 0:00:16.3]} 33... g5 {[%clk 0:00:50.9]} 34. Be5 {[%clk 0:00:15.6]} 34...
Kg8 {[%clk 0:00:40.5]} 35. a5 {[%clk 0:00:13.4]} 35... bxa5 {[%clk 0:00:31.2]}
36. b6 {[%clk 0:00:14]} 36... Ne8 {[%clk 0:00:18.8]} 37. b7 {[%clk 0:00:13.7]}
37... Bd6 {[%clk 0:00:19.3]} 38. Bb5 {[%clk 0:00:11]} 38... Nxe5 {[%clk
0:00:14.1]} 39. Nxe5 {[%clk 0:00:09.3]} 39... Bb8 {[%clk 0:00:14.3]} 40. Qc5
{[%clk 0:00:05.7]} 40... Nd6 {[%clk 0:00:12.6]} 41. Nc6 {[%clk 0:00:06]} 41...
Qc7 {[%clk 0:00:12.2]} 42. Ba6 {[%clk 0:00:04.5]} 42... Nxb7 {[%clk 0:00:10.7]}
43. Qb5 {[%clk 0:00:03.1]} 43... Qh2+ {[%clk 0:00:10.7]} 44. Kf1 {[%clk
0:00:03.3]} 44... Qh1+ {[%clk 0:00:11]} 45. Ke2 {[%clk 0:00:04]} 45... Bh2
{[%clk 0:00:10.7]} 46. Qxb7 {[%clk 0:00:03.8]} 46... Qxg2 {[%clk 0:00:03.2]} 47.
Nd8 {[%clk 0:00:04]} 47... Qxh3 {[%clk 0:00:02.1]} 48. Qxf7+ {[%clk 0:00:04.4]}
48... Kh8 {[%clk 0:00:02.9]} 49. Nxe6 {[%clk 0:00:04.9]} 49... Qg4+ {[%clk
0:00:02.7]} 50. Kd2 {[%clk 0:00:05.4]} 1-0

[Event "Late-Titled-Tuesday-Blitz-May-14-2024"]
[Site "Chess.com"]
[Date "2024.05.14"]
[Round "5"]
[White "NajdorfPlayerc5"]
[Black "klifus"]
[Result "1-0"]
[WhiteElo "2392"]
[BlackElo "2143"]
[TimeControl "180+1"]
[EndTime "14:56:28 PDT"]
[Termination "NajdorfPlayerc5 won by resignation"]

1. d4 {[%clk 0:03:00.9]} 1... Nf6 {[%clk 0:02:58.4]} 2. c4 {[%clk 0:03:00.3]}
2... g6 {[%clk 0:02:57.7]} 3. Nc3 {[%clk 0:02:58.4]} 3... Bg7 {[%clk 0:02:57.7]}
4. e4 {[%clk 0:02:57.9]} 4... d6 {[%clk 0:02:57.8]} 5. Be3 {[%clk 0:02:56.8]}
5... O-O {[%clk 0:02:57.4]} 6. Be2 {[%clk 0:02:54.5]} 6... c5 {[%clk 0:02:56.2]}
7. Nf3 {[%clk 0:02:43.8]} 7... cxd4 {[%clk 0:02:52.4]} 8. Nxd4 {[%clk
0:02:44.7]} 8... Nc6 {[%clk 0:02:51.9]} 9. O-O {[%clk 0:02:43.6]} 9... Bd7
{[%clk 0:02:50.4]} 10. Qd2 {[%clk 0:02:40.5]} 10... Qa5 {[%clk 0:02:26.2]} 11.
Nc2 {[%clk 0:02:23]} 11... Rfc8 {[%clk 0:02:21.5]} 12. f3 {[%clk 0:01:54.6]}
12... a6 {[%clk 0:02:05]} 13. a3 {[%clk 0:01:28.7]} 13... Ne5 {[%clk 0:02:01.7]}
14. b3 {[%clk 0:01:18.3]} 14... b5 {[%clk 0:01:57]} 15. b4 {[%clk 0:01:18.1]}
15... Qc7 {[%clk 0:01:48.9]} 16. c5 {[%clk 0:01:18.3]} 16... dxc5 {[%clk
0:01:42.2]} 17. Bxc5 {[%clk 0:01:17.1]} 17... Be6 {[%clk 0:01:39.1]} 18. Ne3
{[%clk 0:01:00.6]} 18... Rd8 {[%clk 0:01:36.5]} 19. Qc2 {[%clk 0:00:53]} 19...
Nc4 {[%clk 0:01:29]} 20. Nxc4 {[%clk 0:00:48.6]} 20... Bxc4 {[%clk 0:01:28.2]}
21. Bxc4 {[%clk 0:00:48.3]} 21... bxc4 {[%clk 0:01:28]} 22. Rad1 {[%clk
0:00:48.5]} 22... e6 {[%clk 0:01:23.8]} 23. Rxd8+ {[%clk 0:00:47.1]} 23... Qxd8
{[%clk 0:01:19.1]} 24. Rd1 {[%clk 0:00:48]} 24... Qc7 {[%clk 0:01:16.2]} 25. Qe2
{[%clk 0:00:47.3]} 25... Ng4 {[%clk 0:01:07.6]} 26. fxg4 {[%clk 0:00:37.8]}
26... Bxc3 {[%clk 0:01:07.3]} 27. Qxc4 {[%clk 0:00:37.8]} 27... Be5 {[%clk
0:01:03.7]} 28. h3 {[%clk 0:00:36.8]} 28... Qc6 {[%clk 0:00:56.7]} 29. Qd3
{[%clk 0:00:29.3]} 29... Qb5 {[%clk 0:00:52.7]} 30. g5 {[%clk 0:00:24.2]} 30...
Qxd3 {[%clk 0:00:51.7]} 31. Rxd3 {[%clk 0:00:24.4]} 31... Kg7 {[%clk 0:00:50.6]}
32. h4 {[%clk 0:00:20.3]} 32... h6 {[%clk 0:00:49.9]} 33. gxh6+ {[%clk
0:00:20.2]} 33... Kxh6 {[%clk 0:00:49.1]} 34. Rd7 {[%clk 0:00:18.9]} 34... Kg7
{[%clk 0:00:48.2]} 35. Kf2 {[%clk 0:00:18.9]} 35... a5 {[%clk 0:00:47.6]} 36. b5
{[%clk 0:00:16.4]} 36... a4 {[%clk 0:00:47.4]} 37. b6 {[%clk 0:00:16.2]} 37...
Rb8 {[%clk 0:00:47]} 38. b7 {[%clk 0:00:15.8]} 38... Bf6 {[%clk 0:00:39.6]} 39.
Ba7 {[%clk 0:00:14.4]} 39... Bxh4+ {[%clk 0:00:38.7]} 40. g3 {[%clk 0:00:14.1]}
40... Rxb7 {[%clk 0:00:38.6]} 41. Rxb7 {[%clk 0:00:13.8]} 41... Bf6 {[%clk
0:00:38.5]} 42. Ke3 {[%clk 0:00:12.4]} 42... Be5 {[%clk 0:00:38]} 43. Bd4 {[%clk
0:00:12.4]} 43... Bxd4+ {[%clk 0:00:37.7]} 44. Kxd4 {[%clk 0:00:13.3]} 44... g5
{[%clk 0:00:35.3]} 45. Rb4 {[%clk 0:00:12.8]} 45... Kg6 {[%clk 0:00:34.4]} 46.
Rxa4 {[%clk 0:00:12.7]} 46... Kh5 {[%clk 0:00:34.4]} 47. Ke3 {[%clk 0:00:11.9]}
47... Kg4 {[%clk 0:00:34.3]} 48. Kf2 {[%clk 0:00:12.4]} 48... Kh3 {[%clk
0:00:30]} 49. Rb4 {[%clk 0:00:08.4]} 49... f5 {[%clk 0:00:28.4]} 50. exf5 {[%clk
0:00:09.3]} 50... exf5 {[%clk 0:00:27.8]} 51. Rb1 {[%clk 0:00:06.8]} 51... Kg4
{[%clk 0:00:23.9]} 52. a4 {[%clk 0:00:06.9]} 52... f4 {[%clk 0:00:24]} 53. gxf4
{[%clk 0:00:07.3]} 53... gxf4 {[%clk 0:00:24.2]} 54. a5 {[%clk 0:00:08.2]} 54...
Kf5 {[%clk 0:00:24.4]} 55. a6 {[%clk 0:00:09.1]} 55... Ke4 {[%clk 0:00:24.7]}
56. a7 {[%clk 0:00:10]} 56... Kd4 {[%clk 0:00:24.7]} 57. a8=Q {[%clk 0:00:10.9]}
57... Kc5 {[%clk 0:00:24.8]} 58. Qf3 {[%clk 0:00:11.8]} 58... Kd4 {[%clk
0:00:24.7]} 59. Rh1 {[%clk 0:00:12.7]} 59... Ke5 {[%clk 0:00:24.1]} 60. Rh4
{[%clk 0:00:13.6]} 60... Ke6 {[%clk 0:00:23.6]} 61. Rxf4 {[%clk 0:00:14.5]}
61... Kd6 {[%clk 0:00:23.7]} 62. Qg4 {[%clk 0:00:14.9]} 1-0

[Event "Late-Titled-Tuesday-Blitz-May-14-2024"]
[Site "Chess.com"]
[Date "2024.05.14"]
[Round "5"]
[White "nindjaxx8"]
[Black "dretch"]
[Result "1-0"]
[WhiteElo "2653"]
[BlackElo "2863"]
[TimeControl "180+1"]
[EndTime "14:56:29 PDT"]
[Termination "nindjaxx8 won on time"]

1. d4 {[%clk 0:02:51.4]} 1... d5 {[%clk 0:02:59.8]} 2. c4 {[%clk 0:02:49.2]}
2... c6 {[%clk 0:02:59.9]} 3. Nc3 {[%clk 0:02:48.8]} 3... dxc4 {[%clk
0:02:59.7]} 4. e3 {[%clk 0:02:47.3]} 4... b5 {[%clk 0:02:59.5]} 5. a4 {[%clk
0:02:47.8]} 5... b4 {[%clk 0:02:59.7]} 6. Na2 {[%clk 0:02:47.2]} 6... e6 {[%clk
0:02:51.6]} 7. Bxc4 {[%clk 0:02:46.6]} 7... Nf6 {[%clk 0:02:51.9]} 8. Nf3 {[%clk
0:02:47.2]} 8... Bb7 {[%clk 0:02:50.7]} 9. Bd2 {[%clk 0:02:47.5]} 9... a5 {[%clk
0:02:50.6]} 10. O-O {[%clk 0:02:47.3]} 10... Nbd7 {[%clk 0:02:47.9]} 11. Nc1
{[%clk 0:02:33.7]} 11... Bd6 {[%clk 0:02:38.5]} 12. Nb3 {[%clk 0:02:32.4]} 12...
O-O {[%clk 0:02:37.6]} 13. Qe2 {[%clk 0:02:28.8]} 13... c5 {[%clk 0:02:34.9]}
14. dxc5 {[%clk 0:02:22.1]} 14... Nxc5 {[%clk 0:02:34.2]} 15. Nxc5 {[%clk
0:02:21]} 15... Bxc5 {[%clk 0:02:29.7]} 16. Rfd1 {[%clk 0:02:21.7]} 16... Qb6
{[%clk 0:02:22.2]} 17. Rac1 {[%clk 0:02:21.2]} 17... Rac8 {[%clk 0:02:10.2]} 18.
h3 {[%clk 0:02:02.6]} 18... Rfd8 {[%clk 0:01:47]} 19. Be1 {[%clk 0:01:57.1]}
19... Rxd1 {[%clk 0:01:45.9]} 20. Rxd1 {[%clk 0:01:58]} 20... Ne4 {[%clk
0:01:32.6]} 21. Bb3 {[%clk 0:01:34.5]} 21... Be7 {[%clk 0:01:20.2]} 22. Ne5
{[%clk 0:01:28.3]} 22... Nc5 {[%clk 0:01:08]} 23. Bc2 {[%clk 0:01:22.9]} 23...
Qc7 {[%clk 0:00:59.6]} 24. Bxh7+ {[%clk 0:01:14.9]} 24... Kf8 {[%clk 0:00:58.5]}
25. Qh5 {[%clk 0:01:02.4]} 25... Bf6 {[%clk 0:00:34.3]} 26. Rd7 {[%clk
0:01:01.8]} 26... Qxd7 {[%clk 0:00:32.6]} 27. Nxd7+ {[%clk 0:01:01.8]} 27...
Nxd7 {[%clk 0:00:33.5]} 28. Qxa5 {[%clk 0:00:55.6]} 28... g6 {[%clk 0:00:25.7]}
29. Qxb4+ {[%clk 0:00:47.9]} 29... Nc5 {[%clk 0:00:25.6]} 30. Bc3 {[%clk
0:00:43.8]} 30... Kg7 {[%clk 0:00:13.6]} 31. Bxf6+ {[%clk 0:00:42.9]} 31... Kxf6
{[%clk 0:00:14.5]} 32. Qd4+ {[%clk 0:00:39.7]} 32... Ke7 {[%clk 0:00:12.6]} 33.
Qg7 {[%clk 0:00:36.2]} 33... Be4 {[%clk 0:00:11.8]} 34. f3 {[%clk 0:00:33.4]}
34... Bc2 {[%clk 0:00:08.4]} 35. e4 {[%clk 0:00:33.6]} 35... Bxa4 {[%clk
0:00:05]} 36. Bxg6 {[%clk 0:00:33.2]} 36... Be8 {[%clk 0:00:05.3]} 37. Bh5
{[%clk 0:00:30.7]} 37... Nd7 {[%clk 0:00:04.1]} 38. Qg5+ {[%clk 0:00:24.5]}
38... Kf8 {[%clk 0:00:03.9]} 39. h4 {[%clk 0:00:22.7]} 39... Rc5 {[%clk
0:00:03.8]} 40. Qh6+ {[%clk 0:00:21.9]} 40... Ke7 {[%clk 0:00:04.3]} 41. Bg4
{[%clk 0:00:20.9]} 41... Rb5 {[%clk 0:00:03.4]} 42. h5 {[%clk 0:00:20.5]} 42...
Rxb2 {[%clk 0:00:02.9]} 43. Qg5+ {[%clk 0:00:19.3]} 43... f6 {[%clk 0:00:03.2]}
44. Qg7+ {[%clk 0:00:19.2]} 44... Bf7 {[%clk 0:00:03.4]} 45. h6 {[%clk
0:00:19.7]} 45... Rb1+ {[%clk 0:00:03.4]} 46. Kh2 {[%clk 0:00:19.6]} 46... Nf8
{[%clk 0:00:02.8]} 47. h7 {[%clk 0:00:19.3]} 47... Nxh7 {[%clk 0:00:02]} 48.
Qxh7 {[%clk 0:00:20.2]} 48... Rb5 {[%clk 0:00:01.8]} 49. Qh6 {[%clk 0:00:18.2]}
49... Rg5 {[%clk 0:00:01.9]} 50. Qh4 {[%clk 0:00:16.9]} 50... Rg6 {[%clk
0:00:01.8]} 51. Qf2 {[%clk 0:00:15.5]} 51... Rh6+ {[%clk 0:00:01.8]} 52. Kg1
{[%clk 0:00:16.1]} 52... Rh7 {[%clk 0:00:00.8]} 53. Qc5+ {[%clk 0:00:16.5]}
53... Ke8 {[%clk 0:00:01.4]} 54. Qd6 {[%clk 0:00:16]} 1-0